bitfinex-derivatives/quotes_ETHF0:USTF0_20210702
["timestamp","ask_amount","ask_price","bid_price","bid_amount"]
[1625269649224,44.45577,2150.1,2150.0,2.20527]
[1625269649725,4.70287,2150.1,2150.0,2.20527]
[1625269650876,6.90814,2150.1,2150.0,2.20527]
[1625269651175,6.90814,2150.1,2149.1,47.0394]
[1625269651276,6.90814,2150.1,2149.1,46.0394]
[1625269652434,6.90814,2150.1,2148.3,1.0]
[1625269652534,6.90814,2150.1,2148.2,15.4853]
[1625269652634,6.90814,2150.1,2148.2,16.4853]
[1625269652886,4.70287,2150.1,2149.7,2.20527]
[1625269655040,2.20527,2149.8,2149.7,2.20527]
[1625269656712,4.759,2150.7,2149.7,2.20527]
[1625269656815,4.759,2150.7,2149.7,5.41017]
[1625269657014,2.20527,2150.4,2150.1,2.20527]
[1625269657666,2.20527,2150.4,2150.3,46.9678]
[1625269658065,2.20527,2150.4,2150.1,2.20527]
[1625269658971,2.20527,2150.4,2150.3,2.20527]
[1625269661072,2.20527,2150.4,2150.1,2.20527]
[1625269663129,2.20527,2150.4,2150.1,4.41054]
[1625269674924,3.55771172,2150.4,2150.1,4.41054]
[1625269675223,2.20527,2150.2,2150.1,4.41054]
[1625269678878,1.37133101,2151.1,2150.1,4.41054]
[1625269678978,2.18085729,2151.2,2150.1,4.41054]
[1625269679179,2.20527,2150.7,2150.5,2.20527]
[1625269679682,1.37872887,2150.6,2150.5,2.20527]
[1625269687847,2.20527,2150.7,2150.5,5.47337]
[1625269687997,2.20527,2150.7,2150.6,52.8669]
[1625269689204,2.20527,2150.7,2150.6,55.07217]
[1625269690963,2.20527,2150.7,2150.6,2.20527]
[1625269691120,3.58375395,2150.7,2150.6,2.20527]
[1625269698246,3.58375395,2150.7,2150.6,58.41707]
[1625269698897,3.58375395,2150.7,2150.6,2.20527]
[1625269699547,7.16325395,2150.7,2150.6,2.20527]
[1625269700250,5.78477,2150.7,2150.6,2.20527]
[1625269700362,5.78477,2150.7,2150.6,59.68217]
[1625269700749,5.78477,2150.7,2150.6,2.20527]
[1625269700852,2.20527,2150.7,2150.6,2.20527]
[1625269702402,5.42705581,2151.7,2150.6,2.20527]
[1625269702503,5.42705581,2151.7,2150.6,3.20527]
[1625269702804,4.759,2151.8,2150.6,3.20527]
[1625269702956,5.80722569,2151.6,2151.5,53.0818]
[1625269703306,2.20527,2151.6,2151.5,55.28707]
[1625269703654,8.01284899,2151.6,2151.5,55.28707]
[1625269705774,8.01284899,2151.6,2151.5,2.20527]
[1625269705875,8.01284899,2151.6,2148.4,8.22854134]
[1625269706024,11.76674899,2151.6,2150.5,1.0]
[1625269706281,5.80787233,2151.5,2150.5,1.0]
[1625269707334,5.80787233,2151.5,2151.1,2.20527]
[1625269707687,11.32143891,2151.5,2151.1,2.20527]
[1625269709240,4.34665312,2151.4,2151.1,2.20527]
[1625269709342,2.20527,2151.2,2151.1,2.20527]
[1625269709940,3.58365899,2151.2,2151.1,2.20527]
[1625269710041,11.36646013,2151.2,2151.1,2.20527]
[1625269710892,15.71492821,2151.2,2151.1,2.20527]
[1625269712098,11.36646013,2151.2,2151.1,2.20527]
[1625269714204,15.72292242,2151.2,2151.1,2.20527]
[1625269716757,11.36646013,2151.2,2151.1,2.20527]
[1625269716870,16.8801369,2151.2,2151.1,2.20527]
[1625269725503,11.36646013,2151.2,2151.1,2.20527]
[1625269725702,15.74518841,2151.2,2151.1,2.20527]
[1625269728956,15.74518841,2151.2,2150.8,2.20527]
[1625269729206,5.81017362,2151.1,2150.8,2.20527]
[1625269729459,5.81017362,2151.1,2150.9,2.20527]
[1625269730557,5.81017362,2151.1,2150.9,5.61287]
[1625269732111,5.81017362,2151.1,2150.9,2.20527]
[1625269734633,8.60317362,2151.1,2150.5,3.20527]
[1625269734735,8.60317362,2151.1,2150.5,2.20527]
[1625269735034,1.37833351,2151.0,2150.5,2.20527]
[1625269735134,1.37833351,2151.0,2150.7,57.0504]
[1625269735435,5.80963481,2151.1,2150.8,2.20527]
[1625269736490,1.37831991,2151.1,2150.8,2.20527]
[1625269736589,1.37831991,2151.1,2150.8,4.66827]
[1625269737393,2.20527,2150.9,2150.8,4.66827]
[1625269738040,3.58350871,2150.9,2150.8,4.66827]
[1625269738744,2.20527,2150.9,2150.8,4.66827]
[1625269738895,2.20527,2150.9,2150.8,55.17627]
[1625269741802,2.20527,2150.9,2150.8,4.66827]
[1625269742154,2.20527,2150.9,2150.8,2.20527]
[1625269742555,3.58350712,2150.9,2150.8,2.20527]
[1625269748181,1.37823712,2150.9,2150.8,2.20527]
[1625269748487,1.37816257,2151.1,2150.8,43.22447]
[1625269749538,1.37816257,2151.1,2151.0,2.20527]
[1625269749639,1.37810076,2151.2,2151.0,2.20527]
[1625269750390,5.81140098,2151.2,2151.0,2.20527]
[1625269750592,5.81140098,2151.2,2151.0,4.50377]
[1625269750740,1.37810076,2151.2,2151.0,4.50377]
[1625269751192,5.8113251,2151.2,2151.0,4.50377]
[1625269751494,1.37810076,2151.2,2151.0,4.50377]
[1625269751798,1.37810076,2151.2,2151.1,45.2247]
[1625269752355,1.37810076,2151.2,2151.0,4.50377]
[1625269752505,1.37810076,2151.2,2151.0,2.20527]
[1625269753003,5.81092115,2151.2,2151.0,2.20527]
[1625269753353,9.38205009,2151.2,2151.0,2.20527]
[1625269753554,11.58732009,2151.2,2151.0,2.20527]
[1625269753805,1.37819337,2151.1,2151.0,2.20527]
[1625269753909,1.37819337,2151.1,2150.8,2.20527]
[1625269755958,4.94951258,2151.1,2150.8,2.20527]
[1625269756110,9.38223234,2151.1,2150.8,2.20527]
[1625269756412,1.37823863,2151.0,2150.8,2.20527]
[1625269756519,4.15563863,2151.0,2150.8,2.20527]
[1625269756768,1.37825775,2150.9,2150.8,2.20527]
[1625269757617,3.58352775,2150.9,2150.8,2.20527]
[1625269758020,3.58352775,2150.9,2150.8,7e-05]
[1625269758170,8.58352775,2150.9,2149.0,15.0024]
[1625269758270,18.53230578,2150.9,2149.6,15.462]
[1625269758369,18.53230578,2150.9,2149.6,1.0]
[1625269758571,1.0,2150.8,2149.0,19.37072336]
[1625269758724,46.9106,2150.0,2149.0,4.36832336]
[1625269758820,1.0,2149.9,2149.0,4.36832336]
[1625269758924,1.0,2149.9,2148.7,14.1606]
[1625269758925,1.0,2149.9,2148.7,17.71170311]
[1625269759421,1.37879219,2149.8,2148.7,17.71170311]
[1625269759526,2.20527,2149.3,2149.2,2.20527]
[1625269759622,5.31127,2149.3,2149.2,2.20527]
[1625269759772,6.31127,2149.3,2149.2,2.20527]
[1625269760386,5.31127,2149.3,2149.2,2.20527]
[1625269760833,6.31127,2149.3,2149.2,2.20527]
[1625269761185,6.31127,2149.3,2149.2,0.36627]
[1625269761287,6.31127,2149.3,2149.2,0.27947]
[1625269761542,8.51654,2149.3,2149.2,0.27947]
[1625269762545,7.51654,2149.3,2149.2,0.27947]
[1625269762644,4.41054,2149.3,2149.2,0.27947]
[1625269762745,3.57190658,2150.1,2149.2,0.27947]
[1625269762894,3.57190658,2150.1,2149.2,3.55377]
[1625269763044,3.57101768,2150.2,2149.2,3.55377]
[1625269763145,3.57101768,2150.2,2149.4,44.6487]
[1625269763245,1.37878243,2150.0,2149.4,44.6487]
[1625269763548,2.20527,2149.7,2149.6,2.20527]
[1625269764956,2.20527,2149.7,2149.2,3.55377]
[1625269765508,3.57076618,2150.4,2149.2,3.55377]
[1625269765611,2.20527,2150.2,2150.1,2.20527]
[1625269765707,2.20527,2150.2,2150.1,4.50897]
[1625269765909,2.20527,2150.2,2150.1,59.40057]
[1625269767511,2.20527,2150.2,2150.1,4.50897]
[1625269769510,2.20527,2150.2,2150.1,52.40357]
[1625269769960,3.57056047,2151.1,2150.1,52.40357]
[1625269770262,1.37824352,2151.0,2150.1,52.40357]
[1625269771462,4.94896585,2151.0,2150.1,52.40357]
[1625269771564,2.20527,2150.7,2150.5,2.20527]
[1625269772366,2.20527,2150.7,2150.1,52.40357]
[1625269773669,2.20527,2150.4,2150.1,52.40357]
[1625269775619,2.20527,2150.3,2150.1,50.1983]
[1625269775970,2.20527,2150.3,2150.1,2.3037]
[1625269776071,2.20527,2150.3,2149.9,2.20527]
[1625269776522,2.20527,2150.3,2150.0,53.2677]
[1625269776926,2.20527,2150.3,2149.9,2.20527]
[1625269777224,1.0,2150.2,2149.6,2.20527]
[1625269777329,2.37851756,2150.2,2149.6,2.20527]
[1625269777576,46.92691756,2150.2,2149.6,2.20527]
[1625269777677,4.41054,2149.7,2149.6,2.20527]
[1625269778439,4.41054,2149.7,2149.6,51.55437]
[1625269779438,4.41054,2149.7,2149.6,2.20527]
[1625269783047,5.41054,2149.7,2149.6,2.20527]
[1625269790266,4.41054,2149.7,2149.6,2.20527]
[1625269790467,5.41054,2149.7,2149.6,2.20527]
[1625269793445,4.41054,2149.7,2149.6,2.20527]
[1625269794097,4.41054,2149.7,2149.6,42.83267]
[1625269794701,1.0,2150.3,2149.6,42.83267]
[1625269795855,2.20527,2150.0,2149.6,45.03794]
[1625269795953,1.0,2149.9,2149.6,4.41054]
[1625269797157,2.20527,2150.0,2149.6,4.41054]
[1625269797307,2.20527,2150.0,2149.6,7.15354]
[1625269797556,2.20527,2150.0,2149.9,47.1007]
[1625269797759,2.20527,2150.0,2149.9,49.30597]
[1625269798409,3.20527,2150.0,2149.9,2.20527]
[1625269798508,3.20527,2150.0,2149.6,2.20527]
[1625269798612,6.35517,2150.0,2149.6,2.20527]
[1625269799309,6.35517,2150.0,2148.8,36.2894]
[1625269799460,5.0,2149.9,2148.7,14.1606]
[1625269799610,1.0,2149.8,2148.6,1.34897894]
[1625269799713,1.37298556,2149.5,2148.4,3.56977262]
[1625269799810,4.41054,2148.5,2148.4,3.06987262]
[1625269799911,10.11084,2148.5,2148.2,9.1525663]
[1625269800012,60.96934,2148.5,2148.2,4.0003663]
[1625269800111,60.96934,2148.5,2148.0,3.70162418]
[1625269800261,60.96934,2148.5,2147.9,14.8121]
[1625269800812,9.18634,2148.5,2147.9,14.8121]
[1625269801464,5.41054,2148.5,2147.9,14.8121]
[1625269801812,4.41054,2148.0,2147.9,17.01737]
[1625269802466,44.4656,2149.0,2147.9,17.01737]
[1625269803119,1.0,2148.9,2147.9,17.01737]
[1625269803270,2.37966453,2148.9,2147.9,17.01737]
[1625269803368,2.37966453,2148.9,2147.2,2.98194]
[1625269803467,5.0,2148.8,2147.2,2.98194]
[1625269803568,1.0,2148.7,2147.2,2.98194]
[1625269803767,1.0,2148.7,2146.3,14.5301]
[1625269803868,4.41054,2146.4,2146.3,14.5301]
[1625269804168,55.4378,2147.4,2146.3,14.5301]
[1625269805022,2.8792,2147.6,2146.3,14.5301]
[1625269805272,1.0,2147.5,2146.3,14.5301]
[1625269805873,2.20527,2146.7,2146.5,2.20527]
[1625269806321,3.20527,2146.7,2146.5,2.20527]
[1625269806946,5.70527,2146.7,2144.6,15.3545]
[1625269807396,5.70527,2146.7,2145.2,50.7702]
[1625269807846,2.20527,2146.0,2145.9,2.20527]
[1625269808449,3.20527,2146.0,2145.9,2.20527]
[1625269808551,3.20527,2146.0,2144.6,15.3545]
[1625269808850,2.20527,2146.0,2144.6,15.3545]
[1625269808950,3.20527,2146.0,2144.6,15.3545]
[1625269809250,3.20527,2146.0,2144.6,20.3545]
[1625269809501,3.20527,2146.0,2144.6,15.3545]
[1625269809703,3.20527,2146.0,2144.7,54.7721]
[1625269809801,6.24007,2146.0,2144.3,15.0593]
[1625269809902,4.41054,2144.4,2144.3,15.0593]
[1625269810003,8.30184,2144.4,2144.3,15.0593]
[1625269810454,53.96474,2144.4,2144.3,8.5841]
[1625269810551,8.30184,2144.4,2144.3,3.8335]
[1625269810802,7.30184,2144.4,2144.3,3.8335]
[1625269811103,7.30184,2144.4,2143.8,2.20527]
[1625269811954,2.20527,2143.9,2143.8,4.41054]
[1625269812053,4.90907,2143.9,2143.8,4.41054]
[1625269812253,7e-05,2143.9,2143.8,4.41054]
[1625269812504,14.8688,2145.9,2143.8,4.41054]
[1625269812603,1.0,2145.8,2143.8,7.06094]
[1625269814007,5.61187,2144.6,2144.4,2.20527]
[1625269814107,1.0,2144.5,2144.4,2.20527]
[1625269814208,5.61187,2144.6,2144.4,2.20527]
[1625269814409,48.1069,2144.5,2144.4,2.20527]
[1625269814660,49.1069,2144.5,2144.4,2.20527]
[1625269814761,49.1069,2144.5,2143.8,2.20527]
[1625269815968,4.41054,2143.9,2143.8,2.20527]
[1625269816068,8.12854,2143.9,2143.8,2.20527]
[1625269816316,8.12854,2143.9,2143.6,2.20527]
[1625269818369,1.0,2143.8,2143.6,2.20527]
[1625269818670,8.12854,2143.9,2143.6,2.20527]
[1625269818870,0.9315,2145.4,2143.6,5.39907]
[1625269818970,0.05,2146.7,2143.6,5.39907]
[1625269819120,2.45057178,2147.9,2143.6,5.39907]
[1625269819225,1.35057178,2147.9,2143.6,5.39907]
[1625269819322,1.35036883,2148.3,2143.6,5.39907]
[1625269819522,1.35036883,2148.3,2144.1,42.8107]
[1625269819721,1.0,2146.0,2144.1,42.8107]
[1625269819820,1.0,2145.7,2144.1,42.8107]
[1625269819920,5.0,2147.4,2145.1,2.20527]
[1625269820024,2.20527,2145.2,2145.1,5.97557]
[1625269820822,3.20527,2145.2,2145.1,5.97557]
[1625269820923,3.20527,2145.2,2145.1,3.7703]
[1625269821324,3.20527,2145.2,2144.9,2.20527]
[1625269821425,51.61207,2145.2,2144.9,2.20527]
[1625269821576,51.61207,2145.2,2143.6,3.1938]
[1625269821775,3.20527,2145.2,2143.6,3.1938]
[1625269821879,2.20527,2145.2,2143.6,3.1938]
[1625269821977,2.20527,2145.2,2145.1,4.41054]
[1625269822127,2.20527,2145.2,2145.1,7.78934]
[1625269822231,2.20527,2145.5,2145.1,7.78934]
[1625269822678,2.20527,2145.5,2145.2,47.372]
[1625269822879,2.20527,2145.5,2145.1,7.78934]
[1625269823229,1.0,2145.7,2145.1,7.78934]
[1625269823534,54.6245,2146.5,2145.1,7.78934]
[1625269823631,15.499,2147.9,2145.1,7.78934]
[1625269824033,2.20527,2145.7,2145.4,2.20527]
[1625269824183,3.20527,2145.7,2145.4,2.20527]
[1625269824333,2.20527,2145.7,2145.4,2.20527]
[1625269824855,5.0,2147.4,2145.4,2.20527]
[1625269825056,1.0,2147.3,2145.4,2.20527]
[1625269826008,2.20527,2146.4,2145.8,2.20527]
[1625269826109,1.0,2146.3,2145.8,2.20527]
[1625269827208,2.20527,2146.4,2145.8,2.20527]
[1625269827357,1.0,2146.3,2145.8,2.20527]
[1625269827608,2.20527,2146.4,2145.8,2.20527]
[1625269828009,2.20527,2146.1,2145.8,2.20527]
[1625269828208,2.20527,2146.1,2145.4,2.20527]
[1625269828313,1.0,2146.0,2145.4,2.20527]
[1625269828713,5.67237,2146.1,2145.4,2.20527]
[1625269828864,2.20527,2146.1,2145.4,5.41797]
[1625269829413,2.20527,2146.1,2145.6,53.447]
[1625269829763,7e-05,2146.1,2145.6,53.447]
[1625269830013,2.20527,2146.4,2146.0,4.41054]
[1625269830118,2.20527,2146.4,2146.0,7.21874]
[1625269830466,1.0,2146.9,2146.0,7.21874]
[1625269831768,1.0,2147.1,2146.0,7.21874]
[1625269831870,15.499,2147.9,2146.0,7.21874]
[1625269832070,2.20527,2147.7,2147.6,2.20527]
[1625269832170,2.20527,2147.7,2147.6,5.05547]
[1625269832274,2.20527,2147.7,2147.6,2.8502]
[1625269832921,3.20527,2147.7,2147.6,2.8502]
[1625269834026,5.41054,2147.7,2147.6,2.8502]
[1625269834177,5.41054,2147.7,2146.8,2.20527]
[1625269836079,2.20527,2146.9,2146.8,2.20527]
[1625269837037,1.0,2147.5,2146.8,2.20527]
[1625269837135,1.0,2147.5,2146.8,4.60177]
[1625269838139,2.20527,2147.4,2147.3,2.20527]
[1625269838240,2.20527,2147.4,2147.3,5.90267]
[1625269838488,3.20527,2147.4,2147.3,5.90267]
[1625269839093,2.20527,2147.4,2147.3,5.90267]
[1625269840094,2.20527,2147.4,2147.3,8.10794]
[1625269840392,3.20527,2147.4,2147.3,8.10794]
[1625269842949,2.20527,2147.4,2147.3,8.10794]
[1625269844105,3.20527,2147.4,2147.3,8.10794]
[1625269844510,2.20527,2147.4,2147.3,8.10794]
[1625269844961,3.20527,2147.4,2147.3,8.10794]
[1625269845662,2.20527,2147.4,2147.3,8.10794]
[1625269848871,3.20527,2147.4,2147.3,8.10794]
[1625269849371,3.20527,2147.4,2147.3,3.6974]
[1625269849472,3.20527,2147.4,2146.1,14.6943]
[1625269850175,5.41054,2147.4,2146.8,2.20527]
[1625269850674,5.41054,2147.4,2146.8,4.95927]
[1625269850774,4.41054,2147.4,2146.8,4.95927]
[1625269851932,1.0,2147.3,2146.8,4.95927]
[1625269852029,1.0,2147.3,2146.8,2.754]
[1625269852281,1.0,2147.3,2147.2,2.20527]
[1625269853885,2.20527,2147.4,2147.2,2.20527]
[1625269854138,1.0,2147.3,2147.2,2.20527]
[1625269854242,3.20527,2147.3,2147.2,2.20527]
[1625269854338,3.20527,2147.3,2147.0,2.20527]
[1625269856443,2.20527,2147.3,2147.0,2.20527]
[1625269858245,2.20527,2147.3,2147.1,2.20527]
[1625269858345,2.20527,2147.3,2147.1,4.72347]
[1625269872196,1.0,2147.2,2147.1,4.72347]
[1625269872289,1.0,2147.2,2147.1,2.20527]
[1625269872891,1.0,2147.2,2146.1,14.6943]
[1625269874343,2.20527,2147.3,2147.1,4.41054]
[1625269874452,3.20527,2147.3,2147.1,4.41054]
[1625269874543,3.20527,2147.3,2147.1,7.78284]
[1625269874645,3.20527,2147.3,2147.1,3.3723]
[1625269874745,2.20527,2147.3,2147.1,3.3723]
[1625269875697,3.20527,2147.3,2147.1,3.3723]
[1625269875845,3.20527,2147.3,2146.1,17.5551]
[1625269875846,3.20527,2147.3,2146.6,2.7012]
[1625269876095,2.20527,2147.3,2146.6,2.7012]
[1625269876395,2.20527,2147.3,2146.8,2.20527]
[1625269876745,3.20527,2147.3,2146.8,2.20527]
[1625269876848,2.20527,2147.3,2146.8,2.20527]
[1625269877848,3.20527,2147.3,2146.8,2.20527]
[1625269878349,2.20527,2146.9,2146.8,2.20527]
[1625269880354,2.20527,2146.9,2146.8,60.42647]
[1625269880453,2.20527,2147.3,2146.8,60.42647]
[1625269881104,1.0,2148.1,2146.8,60.42647]
[1625269881306,15.4433,2148.4,2146.8,60.42647]
[1625269882210,1.0,2148.3,2146.8,60.42647]
[1625269882414,2.20527,2147.9,2147.4,2.20527]
[1625269882512,1.0,2147.8,2147.4,2.20527]
[1625269882916,2.20527,2147.9,2147.4,2.20527]
[1625269883126,1.0,2147.8,2147.4,2.20527]
[1625269883226,2.20527,2147.9,2147.4,2.20527]
[1625269884380,2.20527,2147.5,2147.4,2.20527]
[1625269885181,5.42327,2147.5,2147.4,2.20527]
[1625269885282,6.42327,2147.5,2147.4,2.20527]
[1625269885384,6.42327,2147.5,2146.1,14.6943]
[1625269886135,2.20527,2147.5,2146.1,14.6943]
[1625269886237,1.0,2148.2,2146.2,5.0]
[1625269886438,2.20527,2147.6,2147.5,2.20527]
[1625269886538,3.20527,2147.6,2147.5,2.20527]
[1625269887192,3.20527,2147.6,2146.1,14.6943]
[1625269887492,2.20527,2147.6,2146.1,14.6943]
[1625269887740,1.0,2147.5,2146.1,14.6943]
[1625269888446,1.0,2147.5,2147.2,2.20527]
[1625269888543,1.0,2147.5,2146.7,3.1185]
[1625269888744,2.20527,2147.6,2146.7,3.1185]
[1625269888845,3.20527,2147.6,2146.7,3.1185]
[1625269889044,2.20527,2147.6,2146.7,3.1185]
[1625269890449,2.20527,2147.6,2147.2,2.20527]
[1625269890599,1.0,2147.5,2147.2,2.20527]
[1625269891000,2.20527,2147.6,2147.2,2.20527]
[1625269891752,2.20527,2147.6,2147.0,2.20527]
[1625269892105,1.0,2147.5,2147.0,2.20527]
[1625269892407,1.0,2147.5,2146.1,14.6943]
[1625269892556,7.93874,2147.1,2146.5,2.20527]
[1625269892667,8.93874,2147.1,2146.5,2.20527]
[1625269892859,43.4168,2146.7,2146.5,2.20527]
[1625269893313,8.93874,2147.1,2146.5,2.20527]
[1625269894322,6.73347,2147.1,2146.5,2.20527]
[1625269894476,2.20527,2147.1,2147.0,2.20527]
[1625269894572,2.20527,2147.1,2147.0,5.81067]
[1625269894676,1.90732251,2148.2,2147.0,5.81067]
[1625269895226,15.4433,2148.4,2147.0,5.81067]
[1625269895623,1.0,2148.3,2147.0,5.81067]
[1625269896426,2.20527,2147.8,2147.4,2.20527]
[1625269896574,3.20527,2147.8,2147.4,2.20527]
[1625269897478,2.20527,2147.8,2147.4,2.20527]
[1625269897926,3.20527,2147.8,2147.4,2.20527]
[1625269898476,3.20527,2147.8,2147.4,4.41054]
[1625269898977,1.0,2147.8,2147.4,4.41054]
[1625269899078,1.90867559,2148.6,2147.4,4.41054]
[1625269899383,3.54448535,2149.0,2147.4,4.41054]
[1625269899384,1.90883943,2148.7,2147.4,4.41054]
[1625269899680,1.90883943,2148.7,2148.2,54.933]
[1625269899832,1.90883943,2148.7,2148.2,57.8383]
[1625269899932,1.90883943,2148.7,2148.2,2.9053]
[1625269900141,1.91186671,2149.4,2148.2,2.9053]
[1625269900233,1.0,2148.8,2148.2,2.9053]
[1625269900582,4.41054,2148.3,2148.2,2.9053]
[1625269901034,4.41054,2148.3,2148.1,2.20527]
[1625269903041,2.20527,2148.3,2148.1,2.20527]
[1625269903140,1.91165404,2149.3,2148.1,2.20527]
[1625269903242,1.91165404,2149.3,2148.1,4.72967]
[1625269903340,6.67130303,2149.6,2148.1,4.72967]
[1625269904044,1.0,2149.5,2148.1,4.72967]
[1625269904142,2.91307781,2149.5,2148.1,4.72967]
[1625269904593,2.20527,2148.9,2148.6,2.20527]
[1625269905148,3.20527,2148.9,2148.6,2.20527]
[1625269905650,2.20527,2148.9,2148.6,2.20527]
[1625269905748,1.0,2148.8,2148.6,2.20527]
[1625269906498,3.20527,2148.8,2148.6,2.20527]
[1625269906748,2.20527,2148.8,2148.6,2.20527]
[1625269908909,3.20527,2148.8,2148.6,2.20527]
[1625269911127,2.20527,2148.8,2148.6,2.20527]
[1625269912030,3.20527,2148.8,2148.6,2.20527]
[1625269912131,6.72237,2148.8,2148.6,2.20527]
[1625269917898,5.72237,2148.8,2148.6,2.20527]
[1625269918699,2.20527,2148.8,2148.6,2.20527]
[1625269919850,4.77057,2148.8,2148.6,2.20527]
[1625269920154,1.0,2148.7,2148.6,2.20527]
[1625269920251,1.0,2148.7,2148.6,0.37477]
[1625269920352,1.0,2148.7,2147.5,15.3191]
[1625269920553,2.20527,2148.2,2147.6,2.20527]
[1625269920906,3.20527,2148.2,2147.6,2.20527]
[1625269921159,2.20527,2148.2,2147.6,2.20527]
[1625269922658,2.20527,2148.2,2148.1,8.14084]
[1625269927072,3.20527,2148.2,2148.1,8.14084]
[1625269927172,3.20527,2148.2,2147.5,15.3191]
[1625269927272,6.17407,2148.2,2147.5,15.3191]
[1625269927573,53.99207,2148.2,2147.5,15.3191]
[1625269928033,6.17407,2148.2,2147.5,15.3191]
[1625269928285,5.17407,2148.2,2147.5,15.3191]
[1625269928485,2.20527,2148.2,2147.5,15.3191]
[1625269928588,2.20527,2148.2,2148.1,4.41054]
[1625269929941,1.0,2148.7,2148.1,4.41054]
[1625269930042,2.20527,2148.8,2148.1,4.41054]
[1625269930348,1.0,2148.7,2148.1,4.41054]
[1625269930694,1.0,2148.7,2148.4,2.20527]
[1625269931296,1.0,2148.7,2148.4,5.30037]
[1625269933752,2.20527,2148.8,2148.4,5.30037]
[1625269933852,1.0,2148.7,2148.4,5.30037]
[1625269934608,2.20527,2148.8,2148.4,5.30037]
[1625269936562,3.20527,2148.8,2148.4,5.30037]
[1625269936662,2.20527,2148.5,2148.4,5.30037]
[1625269945846,3.20527,2148.5,2148.4,5.30037]
[1625269945951,3.20527,2148.5,2148.1,2.20527]
[1625269945952,6.35317,2148.5,2147.5,15.3191]
[1625269946699,6.35317,2148.5,2147.9,2.20527]
[1625269946700,2.20527,2148.0,2147.9,2.20527]
[1625269951916,11.986,2150.2,2147.9,2.20527]
[1625269951917,2.2996102,2149.1,2147.9,2.20527]
[1625269952016,1.3653102,2149.1,2147.9,46.30377]
[1625269952412,1.0,2149.0,2147.9,46.30377]
[1625269952663,1.0,2149.0,2148.7,2.20527]
[1625269952762,3.20527,2149.0,2148.7,2.20527]
[1625269953464,2.20527,2149.0,2148.7,2.20527]
[1625269953666,3.20527,2149.0,2148.7,2.20527]
[1625269954619,2.20527,2149.0,2148.7,2.20527]
[1625269954717,2.20527,2148.8,2148.5,2.20527]
[1625269955470,1.0,2148.7,2148.5,2.20527]
[1625269956721,2.20527,2148.6,2148.5,2.20527]
[1625269957922,1.36750565,2149.3,2148.5,2.20527]
[1625269958022,1.36750565,2149.3,2148.5,4.83377]
[1625269958123,1.36723196,2149.6,2148.5,4.83377]
[1625269958274,1.0,2149.5,2148.5,4.83377]
[1625269958726,1.0,2149.5,2149.4,2.20527]
[1625269963250,2.3675931,2149.5,2149.4,2.20527]
[1625269965149,1.0,2149.5,2149.3,2.20527]
[1625269965352,1.36700813,2149.4,2149.3,2.20527]
[1625269965453,2.36700813,2149.4,2149.3,2.20527]
[1625269965701,1.0,2149.4,2149.3,2.20527]
[1625269966654,2.36697508,2149.4,2149.3,2.20527]
[1625269969213,2.36697508,2149.4,2148.9,2.20527]
[1625269969360,2.91612712,2149.4,2148.9,2.20527]
[1625269969660,1.36872692,2149.3,2148.9,2.20527]
[1625269969810,1.0,2149.2,2148.9,2.20527]
[1625269970112,2.36860711,2149.2,2148.9,2.20527]
[1625269970816,4.41054,2149.0,2148.9,2.20527]
[1625269970914,5.41054,2149.0,2148.9,2.20527]
[1625269973069,3.20527,2149.0,2148.9,2.20527]
[1625269978935,2.20527,2149.0,2148.9,2.20527]
[1625269979196,3.20527,2149.0,2148.9,2.20527]
[1625269983552,5.12796931,2149.0,2148.9,2.20527]
[1625269986657,5.95363327,2149.0,2148.9,2.20527]
[1625269986808,7.33306574,2149.0,2148.9,2.20527]
[1625269987470,5.95363327,2149.0,2148.9,2.20527]
[1625269989076,7.33303873,2149.0,2148.9,2.20527]
[1625269989176,4.58467546,2149.0,2148.9,2.20527]
[1625269989526,3.58467546,2149.0,2148.9,2.20527]
[1625269989826,6.33566055,2149.0,2148.9,2.20527]
[1625269990178,4.95625509,2149.0,2148.9,2.20527]
[1625269991682,6.33550515,2149.0,2148.9,2.20527]
[1625269992084,4.95625509,2149.0,2148.9,4.73077]
[1625269992288,2.75098509,2149.0,2148.9,4.73077]
[1625269992389,3.57628062,2149.2,2148.9,4.73077]
[1625269992602,1.37535729,2149.0,2148.9,4.73077]
[1625269992798,5.729e-05,2149.0,2148.9,4.73077]
[1625269992901,1.92550021,2149.1,2148.9,4.73077]
[1625269993107,0.00010021,2149.1,2148.9,4.73077]
[1625269993303,3.57486883,2150.2,2148.9,4.73077]
[1625269993550,3.57486883,2150.2,2149.5,57.5019]
[1625269993903,2.20527,2150.3,2149.5,57.5019]
[1625269994253,1.0,2150.2,2149.5,57.5019]
[1625269994903,1.0,2150.2,2150.1,4.41054]
[1625269995010,5.77710712,2150.3,2150.1,4.41054]
[1625269995307,2.20527,2150.3,2150.1,4.41054]
[1625269995405,2.20527,2150.3,2150.1,7.67604]
[1625269995605,3.20527,2150.3,2150.1,7.67604]
[1625269996357,3.20527,2150.3,2150.1,3.2655]
[1625269996457,3.20527,2150.3,2148.9,2.5255]
[1625269996559,5.98877,2150.3,2148.7,15.5543]
[1625269996960,2.20527,2150.0,2149.8,2.20527]
[1625269997058,0.9249,2150.3,2149.8,5.89117]
[1625269997358,3.56798736,2150.6,2149.8,5.89117]
[1625269997763,3.56777584,2150.9,2149.8,5.89117]
[1625269998010,3.56736367,2151.0,2149.8,5.89117]
[1625269998213,1.0,2150.9,2149.8,5.89117]
[1625269998310,3.56725582,2151.1,2150.8,44.169]